[Event "*** Titled Tuesday Blitz"]
[Site "Chess.com"]
[Date "2019.11.05"]
[Round "8"]
[White "platy3"]
[Black "vlad10898"]
[Result "1-0"]
[WhiteElo "2904"]
[BlackElo "2687"]
[TimeControl "180+2"]
[EndTime "14:55:19 PST"]
[Termination "platy3 won by resignation"]

1. e4 {[%clk 0:03:01]} 1... c5 {[%clk 0:03:00.8]} 2. Nf3 {[%clk 0:03:01]} 2...
d6 {[%clk 0:03:02.3]} 3. d4 {[%clk 0:03:02.6]} 3... cxd4 {[%clk 0:03:04]} 4.
Nxd4 {[%clk 0:03:04.2]} 4... Nf6 {[%clk 0:03:05.5]} 5. Nc3 {[%clk 0:03:05.8]}
5... a6 {[%clk 0:03:07.1]} 6. a4 {[%clk 0:03:05.7]} 6... e5 {[%clk 0:03:07.7]}
7. Nf3 {[%clk 0:03:05.2]} 7... Be7 {[%clk 0:03:09]} 8. Bc4 {[%clk 0:03:05.8]}
8... O-O {[%clk 0:03:10.3]} 9. O-O {[%clk 0:03:06.4]} 9... Be6 {[%clk
0:03:11.6]} 10. Bb3 {[%clk 0:03:07.5]} 10... Qc7 {[%clk 0:03:06.3]} 11. Qe2
{[%clk 0:03:04.8]} 11... Rc8 {[%clk 0:03:00.1]} 12. Bg5 {[%clk 0:02:55.4]} 12...
Nbd7 {[%clk 0:02:58]} 13. Rfd1 {[%clk 0:02:55.9]} 13... h6 {[%clk 0:02:34.6]}
14. Bh4 {[%clk 0:02:54.3]} 14... g5 {[%clk 0:02:29.7]} 15. Bg3 {[%clk
0:02:54.6]} 15... Bxb3 {[%clk 0:02:11.7]} 16. cxb3 {[%clk 0:02:54.5]} 16... Nc5
{[%clk 0:02:13.4]} 17. b4 {[%clk 0:02:01.1]} 17... Ne6 {[%clk 0:02:14.3]} 18.
Nd5 {[%clk 0:01:45.1]} 18... Nxd5 {[%clk 0:02:14.1]} 19. exd5 {[%clk 0:01:47]}
19... Ng7 {[%clk 0:01:55.7]} 20. h4 {[%clk 0:01:44.5]} 20... g4 {[%clk 0:01:56]}
21. Nxe5 {[%clk 0:01:33]} 21... dxe5 {[%clk 0:01:54.6]} 22. Bxe5 {[%clk
0:01:29.5]} 22... Qd7 {[%clk 0:01:51.1]} 23. Qe3 {[%clk 0:01:18.4]} 23... Nf5
{[%clk 0:01:47.8]} 24. Qf4 {[%clk 0:01:13.1]} 24... h5 {[%clk 0:01:26]} 25. d6
{[%clk 0:01:14.2]} 25... Bf8 {[%clk 0:01:15.1]} 26. Qg5+ {[%clk 0:00:57.5]}
26... Bg7 {[%clk 0:01:12.5]} 27. Rd5 {[%clk 0:00:58.9]} 27... Qe6 {[%clk
0:01:03.4]} 28. Rad1 {[%clk 0:00:55.5]} 28... f6 {[%clk 0:00:53.7]} 29. Qg6
{[%clk 0:00:37.3]} 29... Nxh4 {[%clk 0:00:33.5]} 30. Qxh5 {[%clk 0:00:38.2]}
30... fxe5 {[%clk 0:00:34.9]} 31. Qxh4 {[%clk 0:00:39.2]} 31... Rc1 {[%clk
0:00:17.2]} 32. Rxc1 {[%clk 0:00:18.1]} 32... Qxd5 {[%clk 0:00:18]} 33. Qe7
{[%clk 0:00:19.7]} 33... Qf7 {[%clk 0:00:17]} 34. Qg5 {[%clk 0:00:16.2]} 34...
Qf6 {[%clk 0:00:13.6]} 35. Qd2 {[%clk 0:00:13.6]} 35... Rd8 {[%clk 0:00:13.9]}
36. d7 {[%clk 0:00:09.4]} 36... Qf5 {[%clk 0:00:14.6]} 37. Rd1 {[%clk
0:00:08.1]} 37... Kf7 {[%clk 0:00:12.9]} 38. Qd5+ {[%clk 0:00:08.9]} 38... Ke7
{[%clk 0:00:14.1]} 39. Qd6+ {[%clk 0:00:08.1]} 39... Kf7 {[%clk 0:00:15.6]} 40.
Qd5+ {[%clk 0:00:09.6]} 40... Qe6 {[%clk 0:00:15.2]} 41. Qxb7 {[%clk 0:00:10.4]}
41... Bf6 {[%clk 0:00:16.5]} 42. b5 {[%clk 0:00:10.7]} 42... a5 {[%clk
0:00:08.6]} 43. Qc6 {[%clk 0:00:09.4]} 43... Ke7 {[%clk 0:00:07.6]} 44. Qc5+
{[%clk 0:00:08.9]} 44... Kf7 {[%clk 0:00:08.8]} 45. Rd6 {[%clk 0:00:07.5]} 45...
Qe7 {[%clk 0:00:05.3]} 46. Qd5+ {[%clk 0:00:07.5]} 46... Kg7 {[%clk 0:00:06.7]}
47. b6 {[%clk 0:00:08.3]} 47... Rb8 {[%clk 0:00:06.8]} 48. b7 {[%clk 0:00:07.4]}
48... e4 {[%clk 0:00:08]} 49. d8=Q {[%clk 0:00:06.6]} 49... Rxd8 {[%clk
0:00:09.2]} 50. Rxd8 {[%clk 0:00:07.6]} 1-0

[Event "*** Titled Tuesday Blitz"]
[Site "Chess.com"]
[Date "2019.11.05"]
[Round "8"]
[White "SaraciNderim"]
[Black "LPSupi"]
[Result "1-0"]
[WhiteElo "2835"]
[BlackElo "2975"]
[TimeControl "180+2"]
[EndTime "14:55:23 PST"]
[Termination "SaraciNderim won by resignation"]

1. d4 {[%clk 0:03:01.5]} 1... Nf6 {[%clk 0:03:00.5]} 2. Nf3 {[%clk 0:03:02.1]}
2... e6 {[%clk 0:03:01.7]} 3. g3 {[%clk 0:03:03.3]} 3... b5 {[%clk 0:03:01.7]}
4. Bg2 {[%clk 0:03:04.6]} 4... Bb7 {[%clk 0:03:02.5]} 5. O-O {[%clk 0:03:05.7]}
5... c5 {[%clk 0:03:03.7]} 6. e3 {[%clk 0:03:06.6]} 6... a6 {[%clk 0:03:00.5]}
7. b3 {[%clk 0:03:07.9]} 7... Be7 {[%clk 0:03:00.3]} 8. Bb2 {[%clk 0:03:08.6]}
8... O-O {[%clk 0:02:59.3]} 9. Nbd2 {[%clk 0:03:09.8]} 9... cxd4 {[%clk
0:02:57.6]} 10. Nxd4 {[%clk 0:03:10.1]} 10... Qc7 {[%clk 0:02:53.5]} 11. c4
{[%clk 0:03:09.2]} 11... bxc4 {[%clk 0:02:52.6]} 12. Nxc4 {[%clk 0:03:00.7]}
12... Bxg2 {[%clk 0:02:52.4]} 13. Kxg2 {[%clk 0:03:02.6]} 13... d5 {[%clk
0:02:39]} 14. Nd2 {[%clk 0:03:01.9]} 14... Qb7 {[%clk 0:02:38.6]} 15. Rc1 {[%clk
0:02:54.9]} 15... Nbd7 {[%clk 0:02:36.8]} 16. Nc6 {[%clk 0:02:50.5]} 16... Bd6
{[%clk 0:02:31.3]} 17. Nf3 {[%clk 0:02:38.9]} 17... Rfc8 {[%clk 0:02:27.8]} 18.
Nce5 {[%clk 0:02:37.2]} 18... a5 {[%clk 0:02:18.6]} 19. Nxd7 {[%clk 0:02:34.2]}
19... Nxd7 {[%clk 0:02:19.2]} 20. Qd4 {[%clk 0:02:31.7]} 20... e5 {[%clk
0:02:17.8]} 21. Qd2 {[%clk 0:02:31.7]} 21... d4 {[%clk 0:02:12]} 22. Rfd1 {[%clk
0:01:47.5]} 22... a4 {[%clk 0:01:22]} 23. Rxc8+ {[%clk 0:01:42.6]} 23... Rxc8
{[%clk 0:01:20.9]} 24. bxa4 {[%clk 0:01:43.8]} 24... Nf6 {[%clk 0:00:48.9]} 25.
Qe2 {[%clk 0:01:30.3]} 25... Nd5 {[%clk 0:00:19.6]} 26. e4 {[%clk 0:01:12.3]}
26... Nb4 {[%clk 0:00:17.4]} 27. Ba3 {[%clk 0:01:09.8]} 27... Rc3 {[%clk
0:00:11.1]} 28. Bxb4 {[%clk 0:01:05.9]} 28... Qxb4 {[%clk 0:00:13]} 29. Qb5
{[%clk 0:01:04.2]} 29... Qxb5 {[%clk 0:00:03.4]} 30. axb5 {[%clk 0:01:06.1]}
30... Rc2 {[%clk 0:00:04.5]} 31. Rb1 {[%clk 0:01:05.1]} 31... Rxa2 {[%clk
0:00:05.3]} 32. b6 {[%clk 0:01:06.1]} 32... Ra8 {[%clk 0:00:05.6]} 33. b7 {[%clk
0:01:05.8]} 33... Rb8 {[%clk 0:00:06.9]} 34. Nd2 {[%clk 0:01:02.8]} 34... Kf8
{[%clk 0:00:07.3]} 35. Nc4 {[%clk 0:01:03.6]} 35... Bc7 {[%clk 0:00:08.6]} 36.
Rb5 {[%clk 0:00:49.2]} 36... f6 {[%clk 0:00:09.3]} 37. Nb2 {[%clk 0:00:35.1]}
37... Ke7 {[%clk 0:00:09.5]} 38. Nd3 {[%clk 0:00:36.1]} 38... Kd6 {[%clk
0:00:10.9]} 39. Nb4 {[%clk 0:00:37.3]} 39... Re8 {[%clk 0:00:05]} 40. Rd5+
{[%clk 0:00:37.5]} 40... Ke6 {[%clk 0:00:05]} 41. Na6 {[%clk 0:00:37.5]} 41...
Bb8 {[%clk 0:00:06]} 42. Kf3 {[%clk 0:00:36.6]} 42... f5 {[%clk 0:00:06.6]} 43.
Nc5+ {[%clk 0:00:35.9]} 43... Kf6 {[%clk 0:00:04.3]} 44. Rd7 {[%clk 0:00:36.5]}
44... fxe4+ {[%clk 0:00:02.8]} 45. Kxe4 {[%clk 0:00:37.6]} 45... Ba7 {[%clk
0:00:03.9]} 46. Na6 {[%clk 0:00:38.6]} 46... d3 {[%clk 0:00:04.7]} 47. Kxd3
{[%clk 0:00:38.7]} 47... e4+ {[%clk 0:00:05.6]} 48. Ke2 {[%clk 0:00:39.9]} 48...
e3 {[%clk 0:00:07.5]} 49. f4 {[%clk 0:00:37.8]} 49... Kf5 {[%clk 0:00:08.8]} 50.
Rxg7 {[%clk 0:00:36.1]} 50... h5 {[%clk 0:00:09.5]} 51. Rg5+ {[%clk 0:00:36]}
51... Ke4 {[%clk 0:00:10.8]} 52. Re5+ {[%clk 0:00:36.4]} 1-0

[Event "*** Titled Tuesday Blitz"]
[Site "Chess.com"]
[Date "2019.11.05"]
[Round "8"]
[White "Genghis_K"]
[Black "nailbeshirli"]
[Result "0-1"]
[WhiteElo "2907"]
[BlackElo "2701"]
[TimeControl "180+2"]
[EndTime "14:55:44 PST"]
[Termination "nailbeshirli won by resignation"]

1. d4 {[%clk 0:03:01.2]} 1... Nf6 {[%clk 0:02:56.9]} 2. c4 {[%clk 0:03:02.6]}
2... e6 {[%clk 0:02:53.6]} 3. Nc3 {[%clk 0:03:02.1]} 3... Bb4 {[%clk 0:02:48.8]}
4. Qc2 {[%clk 0:03:03.1]} 4... c5 {[%clk 0:02:40.7]} 5. dxc5 {[%clk 0:03:03.5]}
5... Na6 {[%clk 0:02:41.4]} 6. a3 {[%clk 0:02:51.3]} 6... Bxc3+ {[%clk
0:02:38.5]} 7. Qxc3 {[%clk 0:02:53.2]} 7... Nxc5 {[%clk 0:02:40.1]} 8. b4 {[%clk
0:02:50.6]} 8... Nce4 {[%clk 0:02:41.1]} 9. Qb2 {[%clk 0:02:52.3]} 9... d5
{[%clk 0:02:42.1]} 10. c5 {[%clk 0:02:46.7]} 10... d4 {[%clk 0:02:29.7]} 11. e3
{[%clk 0:02:47.8]} 11... Ng4 {[%clk 0:02:12.2]} 12. Nh3 {[%clk 0:02:32]} 12...
dxe3 {[%clk 0:02:09.3]} 13. Bxe3 {[%clk 0:02:20.7]} 13... Nxe3 {[%clk
0:02:04.8]} 14. fxe3 {[%clk 0:02:22.6]} 14... O-O {[%clk 0:02:02.6]} 15. Rd1
{[%clk 0:02:15.1]} 15... Qh4+ {[%clk 0:01:59.4]} 16. Nf2 {[%clk 0:02:10.3]}
16... Nf6 {[%clk 0:01:50.6]} 17. Be2 {[%clk 0:02:00.6]} 17... Qg5 {[%clk
0:01:33.3]} 18. O-O {[%clk 0:01:36.2]} 18... e5 {[%clk 0:01:16.4]} 19. Bf3
{[%clk 0:01:29.8]} 19... Re8 {[%clk 0:01:11.9]} 20. e4 {[%clk 0:01:13.6]} 20...
Bd7 {[%clk 0:01:10.1]} 21. Qd2 {[%clk 0:01:05.5]} 21... Qg6 {[%clk 0:01:01.7]}
22. Qe3 {[%clk 0:01:06.2]} 22... Rad8 {[%clk 0:00:59]} 23. Rd6 {[%clk
0:01:02.9]} 23... Bc6 {[%clk 0:00:55.3]} 24. Rfd1 {[%clk 0:01:02.8]} 24... Rxd6
{[%clk 0:00:55.1]} 25. Rxd6 {[%clk 0:01:04.7]} 25... h6 {[%clk 0:00:53.3]} 26.
g3 {[%clk 0:00:42.5]} 26... Qg5 {[%clk 0:00:50.1]} 27. Qxg5 {[%clk 0:00:35.6]}
27... hxg5 {[%clk 0:00:52]} 28. g4 {[%clk 0:00:30.2]} 28... Rc8 {[%clk
0:00:43.5]} 29. Rd2 {[%clk 0:00:27.3]} 29... a5 {[%clk 0:00:39.2]} 30. Kg2
{[%clk 0:00:25.4]} 30... Kf8 {[%clk 0:00:36.7]} 31. Rb2 {[%clk 0:00:26.2]} 31...
axb4 {[%clk 0:00:34.9]} 32. axb4 {[%clk 0:00:27.2]} 32... Rd8 {[%clk 0:00:24.6]}
33. b5 {[%clk 0:00:26]} 33... Be8 {[%clk 0:00:21.4]} 34. Be2 {[%clk 0:00:23.8]}
34... Ke7 {[%clk 0:00:16.6]} 35. Kf3 {[%clk 0:00:25.1]} 35... Nd7 {[%clk
0:00:14]} 36. Nd3 {[%clk 0:00:26.5]} 36... Rc8 {[%clk 0:00:12.2]} 37. Rc2 {[%clk
0:00:26.7]} 37... f6 {[%clk 0:00:13.7]} 38. Ke3 {[%clk 0:00:21.4]} 38... Nf8
{[%clk 0:00:12.1]} 39. Nb4 {[%clk 0:00:22.9]} 39... Ne6 {[%clk 0:00:12]} 40. c6
{[%clk 0:00:23.8]} 40... bxc6 {[%clk 0:00:09.4]} 41. bxc6 {[%clk 0:00:16.7]}
41... Nd4 {[%clk 0:00:09.8]} 42. Rc1 {[%clk 0:00:18.3]} 42... Nxe2 {[%clk
0:00:06.5]} 43. Kxe2 {[%clk 0:00:20.2]} 43... Kd6 {[%clk 0:00:08]} 44. Rd1+
{[%clk 0:00:21.6]} 44... Kc5 {[%clk 0:00:05.8]} 45. Nd5 {[%clk 0:00:21.3]} 45...
Bxc6 {[%clk 0:00:06.1]} 46. Ne7 {[%clk 0:00:22.5]} 46... Rc7 {[%clk 0:00:07.5]}
47. Rc1+ {[%clk 0:00:19.2]} 47... Kb6 {[%clk 0:00:07.7]} 48. Rb1+ {[%clk
0:00:20.1]} 48... Bb5+ {[%clk 0:00:07]} 49. Rxb5+ {[%clk 0:00:16.1]} 49... Kxb5
{[%clk 0:00:08]} 50. Nd5 {[%clk 0:00:18]} 50... Rc2+ {[%clk 0:00:09.2]} 51. Kd3
{[%clk 0:00:19.6]} 51... Rxh2 {[%clk 0:00:10.6]} 52. Ne7 {[%clk 0:00:21.3]}
52... Rh3+ {[%clk 0:00:11.8]} 53. Ke2 {[%clk 0:00:22.7]} 53... Kc4 {[%clk
0:00:13.1]} 54. Nf5 {[%clk 0:00:23.9]} 54... Rh2+ {[%clk 0:00:14.4]} 55. Ke3
{[%clk 0:00:25.2]} 55... g6 {[%clk 0:00:14.6]} 56. Ne7 {[%clk 0:00:26.6]} 56...
Kc3 {[%clk 0:00:15]} 57. Nxg6 {[%clk 0:00:27.6]} 57... Rh3+ {[%clk 0:00:15.4]}
58. Ke2 {[%clk 0:00:28.8]} 58... Kd4 {[%clk 0:00:16]} 59. Ne7 {[%clk 0:00:28.9]}
59... Kxe4 {[%clk 0:00:16.9]} 60. Nf5 {[%clk 0:00:30.6]} 60... Rh2+ {[%clk
0:00:17.9]} 61. Kf1 {[%clk 0:00:31.8]} 61... Kf4 {[%clk 0:00:18.8]} 62. Kg1
{[%clk 0:00:33.4]} 62... Ra2 {[%clk 0:00:19.6]} 63. Kf1 {[%clk 0:00:34.5]} 63...
Kxg4 {[%clk 0:00:20.6]} 64. Ne3+ {[%clk 0:00:35.6]} 64... Kf3 {[%clk 0:00:21.4]}
0-1

[Event "*** Titled Tuesday Blitz"]
[Site "Chess.com"]
[Date "2019.11.05"]
[Round "8"]
[White "HrvojeZagreb"]
[Black "gemarin"]
[Result "1/2-1/2"]
[WhiteElo "2168"]
[BlackElo "2125"]
[TimeControl "180+2"]
[EndTime "14:55:44 PST"]
[Termination "Game drawn by repetition"]

1. d4 {[%clk 0:03:01.9]} 1... d5 {[%clk 0:02:59.4]} 2. Bf4 {[%clk 0:03:02.7]}
2... c6 {[%clk 0:03:00.2]} 3. c3 {[%clk 0:03:02.4]} 3... Nf6 {[%clk 0:03:01.7]}
4. e3 {[%clk 0:03:03]} 4... Qb6 {[%clk 0:03:00]} 5. Qb3 {[%clk 0:03:03.8]} 5...
Bf5 {[%clk 0:03:00.7]} 6. Nd2 {[%clk 0:03:03.7]} 6... Nbd7 {[%clk 0:03:01]} 7.
Ngf3 {[%clk 0:03:04.1]} 7... e6 {[%clk 0:03:01.9]} 8. Ne5 {[%clk 0:03:03.5]}
8... h6 {[%clk 0:02:59.4]} 9. h3 {[%clk 0:03:02.6]} 9... Be7 {[%clk 0:02:58.4]}
10. g4 {[%clk 0:03:03.6]} 10... Bh7 {[%clk 0:02:57.5]} 11. Be2 {[%clk
0:03:02.9]} 11... Nxe5 {[%clk 0:02:55.2]} 12. Bxe5 {[%clk 0:03:03.2]} 12... O-O
{[%clk 0:02:54]} 13. O-O {[%clk 0:03:03.4]} 13... Nd7 {[%clk 0:02:52]} 14. Bg3
{[%clk 0:03:03.7]} 14... f5 {[%clk 0:02:52.5]} 15. Qxb6 {[%clk 0:02:27.9]} 15...
axb6 {[%clk 0:02:50.5]} 16. a3 {[%clk 0:02:28.6]} 16... Bf6 {[%clk 0:02:46]} 17.
Nf3 {[%clk 0:02:25.3]} 17... Rfe8 {[%clk 0:02:44.4]} 18. Ne5 {[%clk 0:02:26.2]}
18... Nxe5 {[%clk 0:02:43]} 19. Bxe5 {[%clk 0:02:22.7]} 19... Bxe5 {[%clk
0:02:40.7]} 20. dxe5 {[%clk 0:02:24.6]} 20... fxg4 {[%clk 0:02:40.7]} 21. hxg4
{[%clk 0:02:25.9]} 21... Rf8 {[%clk 0:02:33.4]} 22. f4 {[%clk 0:02:25.8]} 22...
Rf7 {[%clk 0:02:30.2]} 23. Kf2 {[%clk 0:02:22.2]} 23... Raf8 {[%clk 0:02:21]}
24. Kg3 {[%clk 0:02:23.3]} 24... g5 {[%clk 0:02:20]} 25. Rf2 {[%clk 0:02:21.7]}
25... c5 {[%clk 0:02:21]} 26. Rd1 {[%clk 0:02:15.8]} 26... Kg7 {[%clk
0:02:20.2]} 27. b4 {[%clk 0:02:10.7]} 27... Bg6 {[%clk 0:02:12.6]} 28. a4 {[%clk
0:01:29.4]} 28... Ra8 {[%clk 0:02:06.7]} 29. Ra1 {[%clk 0:01:24]} 29... Rc7
{[%clk 0:01:58.1]} 30. f5 {[%clk 0:01:23.4]} 30... Bf7 {[%clk 0:01:57]} 31. fxe6
{[%clk 0:00:58.8]} 31... Bxe6 {[%clk 0:01:57]} 32. Rf6 {[%clk 0:01:00.7]} 32...
Bd7 {[%clk 0:01:48.7]} 33. Rxb6 {[%clk 0:00:42.9]} 33... cxb4 {[%clk 0:01:45.5]}
34. cxb4 {[%clk 0:00:26.2]} 34... Rxa4 {[%clk 0:01:45.3]} 35. Rxa4 {[%clk
0:00:26.1]} 35... Bxa4 {[%clk 0:01:45.7]} 36. Bd3 {[%clk 0:00:26]} 36... Be8
{[%clk 0:01:40.3]} 37. Rd6 {[%clk 0:00:21]} 37... Rc3 {[%clk 0:01:39]} 38. Rxd5
{[%clk 0:00:21.7]} 38... Bc6 {[%clk 0:01:34.4]} 39. Rd6 {[%clk 0:00:22]} 39...
Rb3 {[%clk 0:01:31.8]} 40. b5 {[%clk 0:00:16.8]} 40... Bxb5 {[%clk 0:01:31.1]}
41. Rg6+ {[%clk 0:00:12.9]} 41... Kf7 {[%clk 0:01:25.9]} 42. Rf6+ {[%clk
0:00:10.7]} 42... Kg7 {[%clk 0:01:26]} 43. Rg6+ {[%clk 0:00:10.4]} 43... Kf8
{[%clk 0:01:25.2]} 44. Bxb5 {[%clk 0:00:10]} 44... Rxb5 {[%clk 0:01:23.9]} 45.
e6 {[%clk 0:00:11.9]} 45... Re5 {[%clk 0:01:22.2]} 46. Rxh6 {[%clk 0:00:12.8]}
46... Rxe3+ {[%clk 0:01:22.5]} 47. Kf2 {[%clk 0:00:13.2]} 47... Re5 {[%clk
0:01:21.1]} 48. Rh7 {[%clk 0:00:12.6]} 48... b5 {[%clk 0:01:21.5]} 49. Rb7
{[%clk 0:00:12.3]} 49... Ke8 {[%clk 0:01:17.5]} 50. Kf3 {[%clk 0:00:13.3]} 50...
Kf8 {[%clk 0:01:17.6]} 51. Kf2 {[%clk 0:00:14.5]} 51... Rxe6 {[%clk 0:01:15.1]}
52. Rxb5 {[%clk 0:00:15]} 52... Rg6 {[%clk 0:01:16.1]} 53. Kf3 {[%clk
0:00:15.6]} 53... Kg7 {[%clk 0:01:17.3]} 54. Rb7+ {[%clk 0:00:16.2]} 54... Kh6
{[%clk 0:01:17.5]} 55. Ke4 {[%clk 0:00:16.8]} 55... Rf6 {[%clk 0:01:18.6]} 56.
Rb5 {[%clk 0:00:10.8]} 56... Rf4+ {[%clk 0:01:19]} 57. Ke3 {[%clk 0:00:12.5]}
57... Rxg4 {[%clk 0:01:20.1]} 58. Kf3 {[%clk 0:00:13.8]} 58... Rd4 {[%clk
0:01:18.8]} 59. Rb6+ {[%clk 0:00:11.6]} 59... Kh5 {[%clk 0:01:19.4]} 60. Rb8
{[%clk 0:00:13.5]} 60... Rd3+ {[%clk 0:01:20.3]} 61. Kg2 {[%clk 0:00:14.8]}
61... Ra3 {[%clk 0:01:19.6]} 62. Rb4 {[%clk 0:00:15.5]} 62... Rc3 {[%clk
0:01:14.2]} 63. Rd4 {[%clk 0:00:16.4]} 63... Ra3 {[%clk 0:01:13.7]} 64. Rb4
{[%clk 0:00:17.5]} 64... Ra2+ {[%clk 0:01:14.5]} 65. Kg3 {[%clk 0:00:18.4]}
65... Rc2 {[%clk 0:01:12.6]} 66. Ra4 {[%clk 0:00:18.7]} 66... Rc3+ {[%clk
0:01:12.9]} 67. Kg2 {[%clk 0:00:19.3]} 67... Rd3 {[%clk 0:01:13]} 68. Rb4 {[%clk
0:00:20.4]} 68... g4 {[%clk 0:01:13.1]} 69. Rb8 {[%clk 0:00:20.3]} 69... Rd2+
{[%clk 0:01:12.2]} 70. Kg3 {[%clk 0:00:21]} 70... Rd3+ {[%clk 0:01:13.4]} 71.
Kg2 {[%clk 0:00:22.3]} 71... Kg5 {[%clk 0:01:14.3]} 72. Rg8+ {[%clk 0:00:22.7]}
72... Kf5 {[%clk 0:01:14.9]} 73. Rf8+ {[%clk 0:00:23.9]} 73... Kg6 {[%clk
0:01:15.5]} 74. Rg8+ {[%clk 0:00:25.1]} 74... Kh5 {[%clk 0:01:16.3]} 75. Rh8+
{[%clk 0:00:26.4]} 75... Kg5 {[%clk 0:01:17.2]} 76. Rg8+ {[%clk 0:00:27.8]}
76... Kf4 {[%clk 0:01:18.4]} 77. Rf8+ {[%clk 0:00:29.1]} 77... Kg5 {[%clk
0:01:19]} 78. Rg8+ {[%clk 0:00:30.4]} 1/2-1/2

[Event "*** Titled Tuesday Blitz"]
[Site "Chess.com"]
[Date "2019.11.05"]
[Round "8"]
[White "rasmussvane"]
[Black "GadimbayliA"]
[Result "0-1"]
[WhiteElo "2844"]
[BlackElo "2941"]
[TimeControl "180+2"]
[EndTime "14:55:48 PST"]
[Termination "GadimbayliA won on time"]

1. Nf3 {[%clk 0:03:01.9]} 1... d5 {[%clk 0:02:39.8]} 2. g3 {[%clk 0:03:02]} 2...
Nc6 {[%clk 0:02:40.9]} 3. d4 {[%clk 0:03:02.4]} 3... Bg4 {[%clk 0:02:41.5]} 4.
Bg2 {[%clk 0:03:03.6]} 4... Qd7 {[%clk 0:02:42.5]} 5. h3 {[%clk 0:03:01.8]} 5...
Bxf3 {[%clk 0:02:41.6]} 6. Bxf3 {[%clk 0:03:02.5]} 6... O-O-O {[%clk 0:02:42.9]}
7. Bg2 {[%clk 0:02:49.4]} 7... e5 {[%clk 0:02:43.6]} 8. dxe5 {[%clk 0:02:50.5]}
8... Nxe5 {[%clk 0:02:45.5]} 9. c3 {[%clk 0:02:32.9]} 9... Nf6 {[%clk
0:02:30.9]} 10. Be3 {[%clk 0:02:32.5]} 10... Kb8 {[%clk 0:02:28.4]} 11. Nd2
{[%clk 0:02:30.8]} 11... Bd6 {[%clk 0:02:23.1]} 12. Qb3 {[%clk 0:02:29.4]} 12...
c6 {[%clk 0:02:17]} 13. O-O-O {[%clk 0:02:29.8]} 13... Rhe8 {[%clk 0:02:15.3]}
14. Rhe1 {[%clk 0:02:28.3]} 14... Qc7 {[%clk 0:02:11.5]} 15. Bg5 {[%clk
0:02:28.4]} 15... h6 {[%clk 0:02:00.9]} 16. Bxf6 {[%clk 0:02:28.6]} 16... gxf6
{[%clk 0:02:02.8]} 17. e4 {[%clk 0:02:30]} 17... Nd3+ {[%clk 0:02:02.1]} 18. Kb1
{[%clk 0:02:31]} 18... Nxe1 {[%clk 0:02:01.6]} 19. Rxe1 {[%clk 0:02:32.9]} 19...
Bc5 {[%clk 0:01:55.4]} 20. Rf1 {[%clk 0:02:31.1]} 20... dxe4 {[%clk 0:01:47.6]}
21. Nxe4 {[%clk 0:02:32.1]} 21... Bb6 {[%clk 0:01:49.2]} 22. g4 {[%clk
0:02:22.6]} 22... Qf4 {[%clk 0:01:46.6]} 23. Qc2 {[%clk 0:02:19.8]} 23... Re7
{[%clk 0:01:41.9]} 24. a3 {[%clk 0:02:11.1]} 24... Rde8 {[%clk 0:01:34.4]} 25.
f3 {[%clk 0:02:10.5]} 25... Rd8 {[%clk 0:01:35.5]} 26. Ka2 {[%clk 0:02:10.3]}
26... f5 {[%clk 0:01:33.3]} 27. gxf5 {[%clk 0:02:08.7]} 27... Qxf5 {[%clk
0:01:35.2]} 28. c4 {[%clk 0:02:04.5]} 28... Red7 {[%clk 0:01:32.2]} 29. c5
{[%clk 0:02:03.8]} 29... Rd2 {[%clk 0:01:29.5]} 30. Qb3 {[%clk 0:01:54.6]} 30...
Rxg2 {[%clk 0:01:26.9]} 31. cxb6 {[%clk 0:01:56]} 31... Qd5 {[%clk 0:01:20.3]}
32. bxa7+ {[%clk 0:01:49.4]} 32... Kxa7 {[%clk 0:01:21]} 33. Qxd5 {[%clk
0:01:31.7]} 33... Rxd5 {[%clk 0:01:22.9]} 34. Rc1 {[%clk 0:01:08.9]} 34... Rb5
{[%clk 0:01:16.2]} 35. Rb1 {[%clk 0:01:08.6]} 35... Rh2 {[%clk 0:00:59.5]} 36.
Nd6 {[%clk 0:01:09.9]} 36... Rd5 {[%clk 0:01:00.6]} 37. Nxf7 {[%clk 0:01:11.4]}
37... Rxh3 {[%clk 0:01:00]} 38. f4 {[%clk 0:01:01.3]} 38... Rf5 {[%clk
0:00:55.7]} 39. Nd6 {[%clk 0:00:59.9]} 39... Rxf4 {[%clk 0:00:56.9]} 40. Re1
{[%clk 0:00:56.3]} 40... Rd4 {[%clk 0:00:56.5]} 41. Nf5 {[%clk 0:00:44.1]} 41...
Rd2 {[%clk 0:00:54.3]} 42. Ne3 {[%clk 0:00:45.2]} 42... h5 {[%clk 0:00:49.3]}
43. Nc4 {[%clk 0:00:45.3]} 43... Rd4 {[%clk 0:00:47.1]} 44. Na5 {[%clk
0:00:44.3]} 44... Rd5 {[%clk 0:00:44.2]} 45. Nc4 {[%clk 0:00:42.3]} 45... h4
{[%clk 0:00:44.9]} 46. Re7 {[%clk 0:00:41.8]} 46... Rh2 {[%clk 0:00:43.6]} 47.
a4 {[%clk 0:00:39.8]} 47... h3 {[%clk 0:00:33.9]} 48. Rh7 {[%clk 0:00:38.4]}
48... Rd4 {[%clk 0:00:31.1]} 49. Kb3 {[%clk 0:00:39]} 49... Rd3+ {[%clk
0:00:31.1]} 50. Kb4 {[%clk 0:00:38.4]} 50... Re2 {[%clk 0:00:21.1]} 51. b3
{[%clk 0:00:19.5]} 51... h2 {[%clk 0:00:21.7]} 52. Na5 {[%clk 0:00:20.6]} 52...
Rd4+ {[%clk 0:00:19.7]} 53. Kc3 {[%clk 0:00:20.9]} 53... Rd1 {[%clk 0:00:20.9]}
54. Nxc6+ {[%clk 0:00:16]} 54... Kb6 {[%clk 0:00:21.8]} 55. Nd4 {[%clk
0:00:16.5]} 55... Re3+ {[%clk 0:00:23]} 56. Kb4 {[%clk 0:00:07.8]} 56... h1=Q
{[%clk 0:00:24.9]} 57. a5+ {[%clk 0:00:09.2]} 57... Ka6 {[%clk 0:00:22.6]} 58.
Rxh1 {[%clk 0:00:08]} 58... Rxh1 {[%clk 0:00:24.5]} 0-1